fUST/lending_fUST_20250926
["ID","MTS","AMOUNT","RATE_DAILY","PERIOD"]
[387715639,1758822644721,-151.0,0.00020154,2]
[387715641,1758822644731,-480.0,0.00020154,2]
[387715643,1758822644742,-480.0,0.00020154,2]
[387715645,1758822644751,-480.0,0.00020154,2]
[387715647,1758822644760,-480.0,0.00020154,2]
[387715649,1758822644770,-480.0,0.00020154,2]
[387715651,1758822644779,-480.0,0.00020154,2]
[387715653,1758822644789,-480.0,0.00020154,2]
[387715655,1758822644799,-515.46469153,0.00020154,2]
[387715658,1758822644809,-480.0,0.00020154,2]
[387715660,1758822644819,-480.0,0.00020154,2]
[387715662,1758822644828,-480.0,0.00020154,2]
[387715664,1758822644838,-480.0,0.00020154,2]
[387715666,1758822644847,-288.62879399,0.00020154,2]
[387715668,1758822644857,-611.86815062,0.00020154,2]
[387715670,1758822644866,-480.0,0.00020154,2]
[387715672,1758822644875,-480.0,0.00020154,2]
[387715674,1758822644888,-480.0,0.00020154,2]
[387715676,1758822644899,-480.0,0.00020154,2]
[387715678,1758822644908,-480.0,0.00020154,2]
[387715680,1758822644918,-480.0,0.00020154,2]
[387715682,1758822644928,-480.0,0.00020154,2]
[387715684,1758822644939,-366.23888349,0.00020154,2]
[387715686,1758822644949,-480.0,0.00020154,2]
[387715688,1758822644959,-480.0,0.00020154,2]
[387715689,1758822644970,-363.66748593,0.00020154,2]
[387715692,1758822644979,-480.0,0.00020154,2]
[387715694,1758822644988,-480.0,0.00020154,2]
[387715696,1758822644998,-480.0,0.00020154,2]
[387715698,1758822645007,-480.0,0.00020154,2]
[387715700,1758822645017,-480.0,0.00020154,2]
[387715702,1758822645027,-485.86048733,0.00020154,2]
[387715704,1758822645036,-1025.55,0.00020154,2]
[387715706,1758822645045,-480.0,0.00020154,2]
[387715708,1758822645054,-480.0,0.00020154,2]
[387715710,1758822645063,-406.43752809,0.00020154,2]
[387715712,1758822645072,-506.86,0.00020154,2]
[387715714,1758822645082,-480.0,0.00020154,2]
[387715716,1758822645090,-480.0,0.00020154,2]
[387715717,1758822645100,-179.91292044,0.00020154,2]
[387715719,1758822645109,-480.0,0.00020154,2]
[387715721,1758822645118,-480.0,0.00020154,2]
[387715723,1758822645128,-480.0,0.00020154,2]
[387715725,1758822645137,-480.0,0.00020154,2]
[387715727,1758822645146,-480.0,0.00020154,2]
[387715729,1758822645156,-1034.09,0.00020154,2]
[387715731,1758822645165,-480.0,0.00020154,2]
[387715733,1758822645174,-480.0,0.00020154,2]
[387715735,1758822645184,-480.0,0.00020155,2]
[387715737,1758822645193,-480.0,0.00020155,2]
[387715739,1758822645203,-520.37,0.00020155,2]
[387715741,1758822645212,-974.98,0.00020155,2]
[387715743,1758822645223,-480.0,0.00020155,2]
[387715746,1758822645232,-480.0,0.0002016,2]
[387715749,1758822645241,-480.0,0.0002016,2]
[387715751,1758822645251,-480.0,0.0002016,2]
[387715753,1758822645261,-480.0,0.0002016,2]
[387715755,1758822645270,-480.0,0.00020162,2]
[387715757,1758822645282,-1063.78,0.00020162,2]
[387715759,1758822645291,-480.0,0.00020162,2]
[387715761,1758822645301,-480.0,0.00020163,2]
[387715764,1758822645310,-480.0,0.00020163,2]
[387715766,1758822645319,-480.0,0.00020166,2]
[387715768,1758822645328,-1387.82,0.00020166,2]
[387715770,1758822645338,-380.0,0.00020166,2]
[387715772,1758822645348,-480.0,0.00020166,2]
[387715774,1758822645358,-480.0,0.00020166,2]
[387715776,1758822645367,-480.0,0.00020166,2]
[387715778,1758822645376,-480.0,0.00020166,2]
[387715779,1758822645385,-480.0,0.00020166,2]
[387715780,1758822645394,-480.0,0.00020166,2]
[387715781,1758822645403,-480.0,0.00020166,2]
[387715782,1758822645412,-480.0,0.00020166,2]
[387715783,1758822645421,-480.0,0.00020166,2]
[387715784,1758822645430,-3080.89,0.00020166,2]
[387715785,1758822645439,-503.84850847,0.00020421,2]
[387715786,1758822645449,-500.0,0.00020421,2]
[387715787,1758822645458,-523.00889075,0.00020421,2]
[387715788,1758822645467,-742.22199612,0.00020421,2]
[387715789,1758822645481,-1000.0,0.00020421,2]
[387715790,1758822645490,-702.87362549,0.00020421,2]
[387715791,1758822645499,-607.57623543,0.00020424,2]
[387715793,1758822645508,-480.0,0.00020424,2]
[387715794,1758822645517,-740.65,0.00020424,2]
[387715795,1758822645526,-480.0,0.00020424,2]
[387715797,1758822645536,-163.16396985,0.00020426,2]
[387715799,1758822645545,-480.0,0.00020426,2]
[387715801,1758822645555,-480.0,0.00020426,2]
[387715803,1758822645565,-574.12742642,0.00020426,2]
[387715805,1758822645574,-480.0,0.00020426,2]
[387715807,1758822645584,-626.16,0.00020426,2]
[387715809,1758822645595,-480.0,0.00020426,2]
[387715811,1758822645605,-1245.66,0.00020426,2]
[387715819,1758822645673,-480.0,0.00020426,2]
[387715821,1758822645683,-480.0,0.00020426,2]
[387715823,1758822645693,-480.0,0.00020426,2]
[387715825,1758822645702,-480.0,0.00020426,2]
[387715827,1758822645712,-480.0,0.00020426,2]
[387715829,1758822645721,-480.0,0.00020426,2]
[387715831,1758822645731,-480.0,0.00020426,2]
[387715833,1758822645740,-480.0,0.00020426,2]
[387715835,1758822645750,-480.0,0.00020426,2]
[387715837,1758822645759,-500.0,0.00020426,2]
[387715839,1758822645768,-480.0,0.00020428,2]
[387715841,1758822645778,-351.95208544,0.00020428,2]
[387715843,1758822645787,-480.0,0.00020428,2]
[387715845,1758822645797,-480.0,0.00020428,2]
[387715847,1758822645806,-480.0,0.00020428,2]
[387715849,1758822645817,-480.0,0.00020428,2]
[387715851,1758822645826,-480.0,0.00020428,2]
[387715853,1758822645836,-480.0,0.00020428,2]
[387715855,1758822645845,-480.0,0.00020428,2]
[387715857,1758822645855,-480.0,0.00020428,2]
[387715859,1758822645865,-480.0,0.00020428,2]
[387715861,1758822645874,-480.0,0.00020428,2]
[387715863,1758822645885,-480.0,0.00020428,2]
[387715865,1758822645896,-480.0,0.00020428,2]
[387715867,1758822645906,-480.0,0.00020428,2]
[387715869,1758822645915,-480.0,0.00020428,2]
[387715871,1758822645924,-480.0,0.00020428,2]
[387715873,1758822645934,-480.0,0.00020428,2]
[387715875,1758822645944,-480.0,0.00020428,2]
[387715877,1758822645954,-480.0,0.00020428,2]
[387715879,1758822645963,-234.32904614,0.00020428,2]
[387715881,1758822645975,-1025.55,0.00020428,2]
[387715883,1758822645985,-480.0,0.00020428,2]
[387715885,1758822645994,-480.0,0.00020428,2]
[387715887,1758822646004,-506.86,0.00020428,2]
[387715890,1758822646013,-480.0,0.00020428,2]
[387715892,1758822646023,-480.0,0.00020428,2]
[387715894,1758822646032,-480.0,0.00020428,2]
[387715896,1758822646042,-480.0,0.00020428,2]
[387715898,1758822646051,-480.0,0.00020428,2]
[387715900,1758822646061,-1034.09,0.00020428,2]
[387715902,1758822646071,-480.0,0.00020428,2]
[387715904,1758822646079,-480.0,0.00020428,2]
[387715906,1758822646089,-480.0,0.00020429,2]
[387715908,1758822646099,-480.0,0.00020429,2]
[387715910,1758822646108,-520.37,0.00020429,2]
[387715912,1758822646118,-974.98,0.00020429,2]
[387715914,1758822646127,-480.0,0.00020429,2]
[387715916,1758822646137,-480.0,0.00020434,2]
[387715918,1758822646146,-480.0,0.00020434,2]
[387715920,1758822646155,-480.0,0.00020434,2]
[387715922,1758822646164,-189.557449,0.00020436,2]
[387715924,1758822646173,-189.557449,0.00020436,2]
[387715926,1758822646183,-189.557449,0.00020436,2]
[387715928,1758822646192,-189.557449,0.00020436,2]
[387715930,1758822646202,-151.0,0.00020436,2]
[387715932,1758822646211,-151.0,0.00020436,2]
[387715934,1758822646220,-151.0,0.00020436,2]
[387715936,1758822646230,-1063.78,0.00020436,2]
[387715938,1758822646239,-151.0,0.00020436,2]
[387715940,1758822646248,-151.0,0.00020436,2]
[387715942,1758822646258,-151.0,0.00020436,2]
[387715944,1758822646267,-151.0,0.00020436,2]
[387715946,1758822646277,-151.0,0.00020436,2]
[387715948,1758822646286,-480.0,0.00020436,2]
[387715950,1758822646295,-480.0,0.00020437,2]
[387715952,1758822646304,-480.0,0.00020437,2]
[387715954,1758822646313,-480.0,0.0002044,2]
[387715956,1758822646323,-1387.82,0.0002044,2]
[387715958,1758822646332,-480.0,0.0002044,2]
[387715960,1758822646341,-480.0,0.0002044,2]
[387715962,1758822646351,-480.0,0.0002044,2]
[387715964,1758822646360,-151.0,0.0002044,2]
[387715966,1758822646370,-151.0,0.0002044,2]
[387715968,1758822646379,-480.0,0.0002044,2]
[387715970,1758822646388,-480.0,0.0002044,2]
[387715972,1758822646398,-480.0,0.0002044,2]
[387715974,1758822646408,-3080.89,0.0002044,2]
[387715976,1758822646417,-500.0,0.00020449,2]
[387715978,1758822646426,-500.0,0.00020449,2]
[387715980,1758822646436,-500.0,0.00020449,2]
[387715982,1758822646445,-500.0,0.00020449,2]
[387715984,1758822646454,-500.0,0.00020449,2]
[387715986,1758822646463,-500.0,0.00020449,2]
[387715988,1758822646474,-159.50572267,0.00020449,2]
[387715990,1758822646484,-175.23520615,0.00020555,2]
[387715992,1758822646493,-28567.35474008,0.00020627,3]
[387715994,1758822646502,-151.0,0.00020627,2]
[387715996,1758822646512,-151.0,0.00020627,2]
[387715998,1758822646522,-151.0,0.00020627,2]
[387716000,1758822646531,-151.0,0.00020627,2]
[387716002,1758822646541,-151.0,0.00020627,2]
[387716004,1758822646550,-501.78246744,0.00020673,2]
[387716006,1758822646559,-480.0,0.00020698,2]
[387716008,1758822646569,-740.65,0.00020698,2]
[387716010,1758822646579,-233.00201586,0.00020698,2]
[387716012,1758822646589,-269.32847076,0.000207,2]
[387716014,1758822646598,-480.0,0.000207,2]
[387716016,1758822646608,-480.0,0.000207,2]
[387716018,1758822646617,-480.0,0.000207,2]
[387716020,1758822646626,-626.16,0.000207,2]
[387716022,1758822646635,-480.0,0.000207,2]
[387716024,1758822646645,-1245.66,0.000207,2]
[387716026,1758822646655,-480.0,0.000207,2]
[387716028,1758822646664,-480.0,0.000207,2]
[387716030,1758822646674,-209.98846924,0.000207,2]
[387716032,1758822646683,-480.0,0.000207,2]
[387716034,1758822646692,-480.0,0.000207,2]
[387716036,1758822646702,-480.0,0.000207,2]
[387716038,1758822646711,-480.0,0.000207,2]
[387716040,1758822646721,-480.0,0.000207,2]
[387716042,1758822646730,-480.0,0.000207,2]
[387716044,1758822646740,-770.32,0.00020701,3]
[387716046,1758822646749,-1230.16,0.00020701,3]
[387716048,1758822646759,-615.08,0.00020701,3]
[387716050,1758822646768,-307.54,0.00020701,3]
[387716052,1758822646778,-480.0,0.00020702,2]
[387716054,1758822646787,-294.13368788,0.00020702,2]
[387716056,1758822646797,-480.0,0.00020702,2]
[387716058,1758822646806,-480.0,0.00020702,2]
[387716060,1758822646816,-480.0,0.00020702,2]
[387716062,1758822646825,-480.0,0.00020702,2]
[387716064,1758822646834,-393.44625007,0.00020702,2]
[387716071,1758822646843,-480.0,0.00020702,2]
[387716074,1758822646910,-480.0,0.00020702,2]
[387716076,1758822646919,-480.0,0.00020702,2]
[387716078,1758822646928,-480.0,0.00020702,2]
[387716079,1758822646939,-480.0,0.00020702,2]
[387716081,1758822646949,-480.0,0.00020702,2]
[387716083,1758822646958,-480.0,0.00020702,2]
[387716085,1758822646968,-480.0,0.00020702,2]
[387716087,1758822646980,-480.0,0.00020702,2]
[387716089,1758822646990,-480.0,0.00020702,2]
[387716091,1758822646999,-1025.55,0.00020702,2]
[387716093,1758822647009,-480.0,0.00020702,2]
[387716095,1758822647018,-480.0,0.00020702,2]
[387716097,1758822647027,-506.86,0.00020702,2]
[387716099,1758822647037,-480.0,0.00020702,2]
[387716102,1758822647047,-480.0,0.00020702,2]
[387716103,1758822647057,-480.0,0.00020702,2]
[387716106,1758822647066,-480.0,0.00020702,2]
[387716108,1758822647077,-480.0,0.00020702,2]
[387716110,1758822647086,-1034.09,0.00020702,2]
[387716112,1758822647095,-480.0,0.00020702,2]
[387716114,1758822647104,-480.0,0.00020702,2]
[387716116,1758822647113,-480.0,0.00020703,2]
[387716118,1758822647123,-480.0,0.00020703,2]
[387716120,1758822647132,-520.37,0.00020703,2]
[387716122,1758822647143,-974.98,0.00020703,2]
[387716124,1758822647153,-480.0,0.00020703,2]
[387716126,1758822647163,-480.0,0.00020708,2]
[387716128,1758822647173,-480.0,0.00020708,2]
[387716130,1758822647183,-1063.78,0.0002071,2]
[387716132,1758822647192,-480.0,0.0002071,2]
[387716134,1758822647201,-480.0,0.00020711,2]
[387716136,1758822647210,-480.0,0.00020711,2]
[387716138,1758822647219,-480.0,0.00020714,2]
[387716140,1758822647229,-1387.82,0.00020714,2]
[387716142,1758822647239,-480.0,0.00020714,2]
[387716144,1758822647248,-480.0,0.00020714,2]
[387716146,1758822647257,-480.0,0.00020714,2]
[387716148,1758822647266,-259.37439466,0.00020714,2]
[387716150,1758822647276,-151.0,0.00020714,2]
[387716152,1758822647285,-151.0,0.00020714,2]
[387716154,1758822647294,-151.0,0.00020714,2]
[387716156,1758822647303,-151.0,0.00020714,2]
[387716158,1758822647313,-151.0,0.00020714,2]
[387716160,1758822647323,-151.0,0.00020714,2]
[387716162,1758822647332,-3080.89,0.00020714,2]
[387716164,1758822647341,-151.0,0.00020721,2]
[387716166,1758822647351,-151.0,0.00020721,2]
[387716168,1758822647360,-151.0,0.00020721,2]
[387716169,1758822647369,-192.613124,0.00020721,2]
[387716172,1758822647379,-192.613124,0.00020721,2]
[387716174,1758822647388,-192.613124,0.00020721,2]
[387716175,1758822647398,-192.613124,0.00020721,2]
[387716177,1758822647408,-500.0,0.00020814,2]
[387716179,1758822647418,-500.0,0.00020814,2]
[387716182,1758822647430,-203.48031014,0.00020814,2]
[387716184,1758822647439,-506.99971912,0.00020814,2]
[387716186,1758822647449,-500.0,0.00020814,2]
[387716188,1758822647459,-500.0,0.00020814,2]
[387716189,1758822647469,-503.57398142,0.00020814,2]
[387716191,1758822647480,-500.0,0.00020814,2]
[387716193,1758822647489,-501.00712413,0.00020814,2]
[387716195,1758822647499,-500.0,0.00020814,2]
[387716197,1758822647509,-500.0,0.00020814,2]
[387716199,1758822647518,-163.59297665,0.00020814,2]
[387716201,1758822647527,-500.0,0.00020814,2]
[387716203,1758822647537,-500.0,0.00020814,2]
[387716205,1758822647546,-500.0,0.00020814,2]
[387716207,1758822647556,-500.0,0.00020814,2]
[387716209,1758822647566,-160.0,0.00020826,2]
[387716211,1758822647576,-495.838101,0.00020844,2]
[387716213,1758822647585,-151.0,0.00020844,2]
[387716215,1758822647595,-495.838101,0.00020844,2]
[387716217,1758822647604,-151.0,0.00020844,2]
[387716219,1758822647614,-495.838101,0.00020844,2]
[387716221,1758822647623,-495.838101,0.00020844,2]
[387716223,1758822647633,-409.663832,0.00020844,2]
[387716225,1758822647643,-409.663832,0.00020844,2]
[387716227,1758822647653,-409.663832,0.00020844,2]
[387716229,1758822647663,-409.663832,0.00020844,2]
[387716231,1758822647672,-151.0,0.00020844,2]
[387716233,1758822647682,-509.55569589,0.00020968,2]
[387716235,1758822647692,-480.0,0.00020972,2]
[387716236,1758822647701,-740.65,0.00020972,2]
[387716237,1758822647710,-570.63998174,0.00020974,2]
[387716238,1758822647721,-480.0,0.00020974,2]
[387716239,1758822647731,-480.0,0.00020974,2]
[387716240,1758822647741,-626.16,0.00020974,2]
[387716241,1758822647750,-480.0,0.00020974,2]
[387716242,1758822647759,-1245.66,0.00020974,2]
[387716243,1758822647769,-480.0,0.00020974,2]
[387716244,1758822647778,-480.0,0.00020974,2]
[387716245,1758822647788,-480.0,0.00020974,2]
[387716246,1758822647798,-480.0,0.00020974,2]
[387716247,1758822647807,-480.0,0.00020974,2]
[387716248,1758822647817,-480.0,0.00020974,2]
[387716249,1758822647826,-480.0,0.00020974,2]
[387716250,1758822647835,-480.0,0.00020974,2]
[387716251,1758822647844,-480.0,0.00020976,2]
[387716252,1758822647854,-480.0,0.00020976,2]
[387716253,1758822647864,-480.0,0.00020976,2]
[387716254,1758822647873,-493.58,0.00020976,2]
[387716255,1758822647882,-480.0,0.00020976,2]
[387716256,1758822647895,-480.0,0.00020976,2]
[387716257,1758822647905,-480.0,0.00020976,2]
[387716258,1758822647914,-480.0,0.00020976,2]
[387716259,1758822647923,-480.0,0.00020976,2]
[387716260,1758822647933,-480.0,0.00020976,2]
[387716261,1758822647942,-480.0,0.00020976,2]
[387716262,1758822647952,-1025.55,0.00020976,2]
[387716263,1758822647963,-480.0,0.00020976,2]
[387716264,1758822647975,-480.0,0.00020976,2]
[387716265,1758822647985,-506.86,0.00020976,2]
[387716266,1758822647995,-480.0,0.00020976,2]
[387716272,1758822648063,-480.0,0.00020976,2]
[387716274,1758822648074,-480.0,0.00020976,2]
[387716276,1758822648084,-480.0,0.00020976,2]
[387716278,1758822648094,-173.49,0.00020976,2]
[387716280,1758822648104,-1034.09,0.00020976,2]
[387716282,1758822648114,-480.0,0.00020976,2]
[387716284,1758822648124,-480.0,0.00020976,2]
[387716286,1758822648134,-470.37228205,0.00020977,2]
[387716288,1758822648144,-273.35057942,0.00020977,2]
[387716290,1758822648154,-520.37,0.00020977,2]
[387716292,1758822648164,-974.98,0.00020977,2]
[387716294,1758822648173,-480.0,0.00020977,2]
[387716296,1758822648183,-480.0,0.00020982,2]
[387716298,1758822648193,-480.0,0.00020982,2]
[387716300,1758822648203,-1063.78,0.00020984,2]
[387716302,1758822648213,-480.0,0.00020984,2]
[387716304,1758822648226,-480.0,0.00020985,2]
[387716306,1758822648237,-480.0,0.00020985,2]
[387716308,1758822648247,-480.0,0.00020988,2]
[387716310,1758822648257,-1387.82,0.00020988,2]
[387716312,1758822648268,-480.0,0.00020988,2]
[387716314,1758822648278,-480.0,0.00020988,2]
[387716316,1758822648288,-3080.89,0.00020988,2]
[387716318,1758822648300,-151.0,0.00020991,2]
[387716320,1758822648310,-151.0,0.00020991,2]
[387716322,1758822648320,-151.0,0.00020991,2]
[387716324,1758822648329,-151.0,0.00020991,2]
[387716326,1758822648339,-285.863933,0.00020991,2]
[387716328,1758822648348,-151.0,0.00020991,2]
[387716330,1758822648357,-151.0,0.00020991,2]
[387716332,1758822648366,-151.0,0.00020991,2]
[387716334,1758822648376,-1026.02032312,0.00021023,2]
[387716336,1758822648386,-663.21560814,0.00021199,2]
[387716337,1758822648396,-480.0,0.00021246,2]
[387716339,1758822648406,-740.65,0.00021246,2]
[387716341,1758822648416,-480.0,0.00021248,2]
[387716343,1758822648426,-626.16,0.00021248,2]
[387716345,1758822648436,-480.0,0.00021248,2]
[387716347,1758822648447,-1245.66,0.00021248,2]
[387716349,1758822648456,-480.0,0.00021248,2]
[387716351,1758822648466,-480.0,0.00021248,2]
[387716353,1758822648478,-480.0,0.00021248,2]
[387716355,1758822648488,-480.0,0.00021248,2]
[387716357,1758822648498,-480.0,0.00021248,2]
[387716359,1758822648508,-480.0,0.00021248,2]
[387716361,1758822648518,-480.0,0.00021248,2]
[387716363,1758822648528,-480.0,0.00021248,2]
[387716365,1758822648538,-480.0,0.0002125,2]
[387716367,1758822648548,-480.0,0.0002125,2]
[387716370,1758822648558,-225.27305001,0.0002125,2]
[387716371,1758822648569,-480.0,0.0002125,2]
[387716373,1758822648579,-480.0,0.0002125,2]
[387716375,1758822648589,-480.0,0.0002125,2]
[387716377,1758822648600,-1025.55,0.0002125,2]
[387716380,1758822648612,-480.0,0.0002125,2]
[387716381,1758822648622,-480.0,0.0002125,2]
[387716384,1758822648634,-506.86,0.0002125,2]
[387716385,1758822648644,-480.0,0.0002125,2]
[387716387,1758822648654,-480.0,0.0002125,2]
[387716390,1758822648664,-324.66409079,0.0002125,2]
[387716392,1758822648674,-480.0,0.0002125,2]
[387716394,1758822648685,-1034.09,0.0002125,2]
[387716396,1758822648695,-543.13,0.0002125,2]
[387716398,1758822648707,-340.20104849,0.0002125,2]
[387716400,1758822648716,-520.37,0.00021251,2]
[387716402,1758822648728,-974.98,0.00021251,2]
[387716404,1758822648738,-480.0,0.00021251,2]
[387716406,1758822648748,-480.0,0.00021256,2]
[387716408,1758822648758,-480.0,0.00021256,2]
[387716410,1758822648768,-1063.78,0.00021258,2]
[387716412,1758822648777,-601.36041641,0.00021258,2]
[387716413,1758822648786,-480.0,0.00021259,2]
[387716415,1758822648797,-480.0,0.00021259,2]
[387716418,1758822648807,-189.57,0.00021262,2]
[387716419,1758822648816,-1387.82,0.00021262,2]
[387716421,1758822648826,-480.0,0.00021262,2]
[387716423,1758822648835,-480.0,0.00021262,2]
[387716425,1758822648845,-3080.89,0.00021262,2]
[387716427,1758822648855,-168.63354543,0.00021285,2]
[387716429,1758822648865,-1009.17100949,0.00021362,2]
[387716431,1758822648874,-506.80732628,0.00021362,2]
[387716433,1758822648885,-1000.0,0.00021362,2]
[387716435,1758822648899,-1000.0,0.00021362,2]
[387716437,1758822648911,-1000.0,0.00021362,2]
[387716439,1758822648920,-1000.0,0.00021362,2]
[387716441,1758822648930,-501.06641698,0.00021362,2]
[387716443,1758822648940,-260.0,0.00021374,2]
[387716445,1758822648949,-500.0,0.00021421,2]
[387716447,1758822648962,-217.95449826,0.00021421,2]
[387716449,1758822648972,-327.74066599,0.00021421,2]
[387716451,1758822648982,-480.0,0.0002152,2]
[387716453,1758822648992,-740.65,0.0002152,2]
[387716455,1758822649002,-480.0,0.00021522,2]
[387716457,1758822649012,-626.16,0.00021522,2]
[387716459,1758822649022,-1245.66,0.00021522,2]
[387716461,1758822649032,-588.34,0.00021522,2]
[387716463,1758822649041,-480.0,0.00021522,2]
[387716465,1758822649051,-480.0,0.00021522,2]
[387716467,1758822649060,-480.0,0.00021522,2]
[387716469,1758822649070,-480.0,0.00021522,2]
[387716471,1758822649080,-480.0,0.00021522,2]
[387716473,1758822649089,-480.0,0.00021522,2]
[387716475,1758822649100,-480.0,0.00021522,2]
[387716477,1758822649111,-480.0,0.00021524,2]
[387716484,1758822649173,-480.0,0.00021524,2]
[387716487,1758822649188,-480.0,0.00021524,2]
[387716488,1758822649199,-480.0,0.00021524,2]
[387716490,1758822649209,-1025.55,0.00021524,2]
[387716492,1758822649222,-480.0,0.00021524,2]
[387716494,1758822649233,-480.0,0.00021524,2]
[387716497,1758822649244,-506.86,0.00021524,2]
[387716499,1758822649254,-480.0,0.00021524,2]
[387716501,1758822649265,-480.0,0.00021524,2]
[387716502,1758822649275,-480.0,0.00021524,2]
[387716504,1758822649286,-1034.09,0.00021524,2]
[387716506,1758822649295,-520.37,0.00021525,2]
[387716508,1758822649305,-974.98,0.00021525,2]
[387716510,1758822649315,-480.0,0.00021525,2]
[387716512,1758822649325,-480.0,0.0002153,2]
[387716514,1758822649335,-480.0,0.0002153,2]
[387716516,1758822649344,-152.863996,0.00021532,2]
[387716518,1758822649354,-151.0,0.00021532,2]
[387716520,1758822649363,-151.0,0.00021532,2]
[387716522,1758822649373,-151.0,0.00021532,2]
[387716524,1758822649382,-151.0,0.00021532,2]
[387716526,1758822649392,-151.0,0.00021532,2]
[387716528,1758822649402,-151.0,0.00021532,2]
[387716530,1758822649412,-151.0,0.00021532,2]
[387716532,1758822649421,-204.635364,0.00021532,2]
[387716534,1758822649431,-151.0,0.00021532,2]
[387716536,1758822649440,-1063.78,0.00021532,2]
[387716539,1758822649450,-480.0,0.00021533,2]
[387716541,1758822649460,-480.0,0.00021533,2]
[387716543,1758822649471,-1387.82,0.00021536,2]
[387716545,1758822649481,-480.0,0.00021536,2]
[387716547,1758822649491,-480.0,0.00021536,2]
[387716549,1758822649501,-3080.89,0.00021536,2]
[387716550,1758822649511,-166.33447452,0.00021627,2]
[387716552,1758822649521,-232.3399632,0.00021794,2]
[387716554,1758822649531,-740.65,0.00021794,2]
[387716556,1758822649541,-480.0,0.00021796,2]
[387716558,1758822649550,-626.16,0.00021796,2]
[387716561,1758822649562,-1245.66,0.00021796,2]
[387716563,1758822649573,-535.2,0.00021796,2]
[387716565,1758822649582,-480.0,0.00021796,2]
[387716566,1758822649591,-480.0,0.00021796,2]
[387716569,1758822649601,-480.0,0.00021796,2]
[387716570,1758822649611,-480.0,0.00021796,2]
[387716572,1758822649623,-480.0,0.00021796,2]
[387716575,1758822649635,-480.0,0.00021796,2]
[387716577,1758822649645,-273.9671762,0.00021798,2]
[387716579,1758822649655,-480.0,0.00021798,2]
[387716581,1758822649664,-480.0,0.00021798,2]
[387716583,1758822649673,-480.0,0.00021798,2]
[387716585,1758822649683,-1025.55,0.00021798,2]
[387716587,1758822649692,-480.0,0.00021798,2]
[387716589,1758822649702,-480.0,0.00021798,2]
[387716591,1758822649711,-506.86,0.00021798,2]
[387716593,1758822649722,-480.0,0.00021798,2]
[387716595,1758822649731,-480.0,0.00021798,2]
[387716597,1758822649741,-480.0,0.00021798,2]
[387716599,1758822649749,-1034.09,0.00021798,2]
[387716601,1758822649759,-520.37,0.00021799,2]
[387716603,1758822649768,-189.557449,0.00021799,2]
[387716605,1758822649777,-189.557449,0.00021799,2]
[387716607,1758822649787,-189.557449,0.00021799,2]
[387716609,1758822649796,-189.557449,0.00021799,2]
[387716611,1758822649805,-151.0,0.00021799,2]
[387716613,1758822649814,-151.0,0.00021799,2]
[387716615,1758822649824,-151.0,0.00021799,2]